bitfinex-derivatives/quotes_SOLF0:USTF0_20250625
["timestamp","ask_amount","ask_price","bid_price","bid_amount"]
[1750841668543,42.1004,145.27,145.24,6.8814]
[1750841669039,6.881,145.26,145.23,6.8819]
[1750841669238,3.41276692,145.26,145.2,35.22]
[1750841669445,3.41276692,145.26,145.22,6.8822]
[1750841669942,6.8815,145.25,145.22,6.8822]
[1750841670143,6.8815,145.25,145.23,6.8819]
[1750841670844,6.8815,145.25,145.22,6.8823]
[1750841671141,6.8817,145.24,145.22,6.8823]
[1750841671947,35.22,145.27,145.19,6.8838]
[1750841672146,3.41276692,145.23,145.17,4.6779]
[1750841672345,38.61276692,145.23,145.17,4.6779]
[1750841672538,38.61276692,145.23,145.19,6.8837]
[1750841672740,38.61276692,145.23,145.17,4.6779]
[1750841673042,6.8829,145.22,145.18,6.8842]
[1750841673244,38.61276692,145.23,145.18,6.8842]
[1750841673844,6.8831,145.21,145.18,6.8842]
[1750841675348,6.8831,145.21,145.19,6.8839]
[1750841675847,6.8831,145.21,145.18,6.8842]
[1750841679847,6.8831,145.21,145.19,6.8839]
[1750841680052,6.8829,145.22,145.17,4.6779]
[1750841680446,6.8829,145.22,145.19,6.8835]
[1750841682152,6.8829,145.22,145.2,6.8835]
[1750841683155,6.8829,145.22,145.21,6.42894171]
[1750841684047,35.2,145.23,145.21,8.57192109]
[1750841684453,42.0823,145.23,145.21,8.57192109]
[1750841684754,42.0823,145.23,145.22,6.42882221]
[1750841687854,6.883,145.21,145.19,8.57192109]
[1750841688151,3.41276692,145.22,145.19,8.57192109]
[1750841688351,3.41276692,145.22,145.2,6.4292164]
[1750841688548,6.883,145.21,145.2,6.4292164]
[1750841690156,10.29556692,145.22,145.2,6.4292164]
[1750841690355,10.29556692,145.22,145.21,6.4292164]
[1750841690953,6.883,145.21,145.2,6.4292164]
[1750841695164,6.883,145.21,145.19,6.8839]
[1750841701758,35.2,145.23,145.16,3.41276692]
[1750841701963,35.2,145.23,145.18,3.41276692]
[1750841702264,35.2,145.23,145.2,2.18395043]
[1750841702562,35.2,145.23,145.19,2.18395043]
[1750841702864,37.38395043,145.23,145.19,2.18395043]
[1750841703061,35.2,145.23,145.22,6.8825]
[1750841703260,2.18395043,145.25,145.21,2.18395043]
[1750841703562,37.36395043,145.26,145.25,6.8811]
[1750841703962,35.18,145.26,145.25,6.8811]
[1750841705069,10.29110974,145.28,145.25,6.8811]
[1750841705271,3.41100974,145.28,145.26,6.8806]
[1750841707173,3.41100974,145.28,145.27,6.8802]
[1750841708472,3.41100974,145.28,145.26,6.8804]
[1750841709067,35.18,145.34,145.25,3.41100974]
[1750841709272,35.18,145.34,145.26,4.5364]
[1750841709472,6.8776,145.33,145.3,6.8784]
[1750841709671,6.8776,145.33,145.26,41.9311]
[1750841709874,47.18799685,213.55,145.32,3.41100974]
[1750841709875,35.18,145.46,145.32,3.41100974]
[1750841710076,6.8729,145.43,145.39,6.8741]
[1750841710367,3.41100974,145.45,145.36,38.59100974]
[1750841710573,6.8719,145.45,145.41,6.8734]
[1750841710876,38.59100974,145.46,145.37,3.41100974]
[1750841711075,10.28330974,145.44,145.4,6.8735]
[1750841711373,3.41100974,145.45,145.37,35.18]
[1750841711579,10.28290974,145.45,145.41,6.8731]
[1750841711873,3.41100974,145.45,145.38,3.41100974]
[1750841712274,6.8717,145.45,145.37,35.18]
[1750841712473,6.8717,145.45,145.38,3.41100974]
[1750841712774,6.8717,145.45,145.41,6.8733]
[1750841713670,42.0513,145.46,145.42,6.8729]
[1750841713873,45.46230974,145.46,145.42,6.8729]
[1750841714071,38.59100974,145.46,145.42,6.8729]
[1750841714267,45.46230974,145.46,145.43,6.8725]
[1750841714466,38.59100974,145.46,145.38,3.41100974]
[1750841714661,38.59100974,145.46,145.37,35.18]
[1750841714966,38.59100974,145.46,145.33,6.9384]
[1750841714967,3.41100974,145.4,145.33,6.9384]
[1750841715368,6.8747,145.39,145.35,6.876]
[1750841715569,6.8747,145.39,145.33,6.9384]
[1750841715775,6.8747,145.39,145.35,6.8759]
[1750841716076,6.8747,145.39,145.33,6.9384]
[1750841716272,35.16,145.41,145.34,3.41100974]
[1750841716573,35.16,145.44,145.36,3.41100974]
[1750841716774,38.57100974,145.44,145.36,38.57100974]
[1750841716975,6.8729,145.43,145.39,6.8741]
[1750841717275,6.8729,145.43,145.36,38.57100974]
[1750841718777,42.0323,145.44,145.38,3.41100974]
[1750841719177,42.0323,145.44,145.4,6.8737]
[1750841719777,6.8726,145.43,145.4,6.8737]
[1750841720975,35.16,145.44,145.38,38.55100974]
[1750841721174,3.41100974,145.46,145.38,38.55100974]
[1750841721770,6.8718,145.45,145.42,6.8728]
[1750841722679,38.55100974,145.47,145.4,3.41100974]
[1750841723279,6.8714,145.46,145.43,6.8726]
[1750841723574,38.55100974,145.47,145.4,3.41100974]
[1750841723978,6.8716,145.45,145.42,6.8727]
[1750841725079,6.8713,145.46,145.43,6.8726]
[1750841725485,38.55100974,145.47,145.43,6.8726]
[1750841725676,6.8713,145.46,145.43,6.8726]
[1750841727076,3.41100974,145.46,145.4,2.2846]
[1750841727682,3.41100974,145.46,145.4,5.69560974]
[1750841727977,35.12,145.5,145.42,3.41100974]
[1750841728181,35.12,145.5,145.43,35.12]
[1750841728684,6.8705,145.48,145.46,6.871]
[1750841728880,35.12,145.5,145.46,6.871]
[1750841729582,6.8705,145.48,145.45,6.8714]
[1750841729785,3.41100974,145.49,145.42,3.41100974]
[1750841729987,6.871,145.47,145.45,6.8716]
[1750841730289,3.41100974,145.49,145.45,6.8716]
[1750841730489,6.8706,145.48,145.45,6.8716]
[1750841730891,3.41100974,145.49,145.44,6.8719]
[1750841731077,6.871,145.47,145.44,6.8719]
[1750841731577,6.8707,145.48,145.45,6.8716]
[1750841731777,38.53100974,145.5,145.45,6.8716]
[1750841732991,6.871,145.47,145.44,6.8719]
[1750841733175,38.53100974,145.5,145.44,6.8719]
[1750841733586,6.8711,145.47,145.44,6.8719]
[1750841733984,3.41100974,145.48,145.41,2.3679]
[1750841734181,3.41100974,145.48,145.41,37.4879]
[1750841734380,6.8719,145.45,145.42,6.8726]
[1750841734580,35.12,145.5,145.41,37.4879]
[1750841734780,3.41100974,145.49,145.41,37.4879]
[1750841735088,6.8719,145.45,145.41,37.4879]
[1750841735685,6.8719,145.45,145.43,6.8726]
[1750841739383,6.8719,145.45,145.42,6.8728]
[1750841739689,6.8719,145.45,145.41,37.4879]
[1750841739988,6.8719,145.45,145.43,6.8723]
[1750841740376,13.7357,145.54,145.42,3.41100974]
[1750841740581,3.41100974,145.53,145.46,3.41100974]
[1750841740781,10.27910974,145.53,145.46,38.51100974]
[1750841740983,10.27910974,145.53,145.5,6.8693]
[1750841741178,6.8681,145.53,145.5,6.8693]
[1750841741583,6.8681,145.53,145.51,6.8688]
[1750841742491,6.8676,145.54,145.51,6.8688]
[1750841742690,6.8676,145.54,145.46,38.51100974]
[1750841742892,40.77640974,145.55,145.47,2.3517]
[1750841743093,6.8679,145.53,145.47,2.3517]
[1750841743493,6.8679,145.53,145.47,5.76270974]
[1750841743992,6.8679,145.53,145.5,6.8692]
[1750841744694,6.8679,145.53,145.51,6.8688]
[1750841747297,6.8685,145.52,145.5,6.8691]
[1750841748097,6.8685,145.52,145.49,6.8695]
[1750841748297,6.8685,145.52,145.47,10.35410974]
[1750841749097,6.8685,145.52,145.5,6.869]
[1750841749301,35.1,145.55,145.49,3.41100974]
[1750841749693,35.1,145.55,145.5,6.869]
[1750841749995,6.8683,145.52,145.5,6.869]
[1750841750500,6.8688,145.51,145.49,6.8696]
[1750841750796,3.41100974,145.54,145.48,35.1]
[1750841752198,6.8686,145.52,145.5,6.8692]
[1750841753497,6.869,145.51,145.49,6.8695]
[1750841755097,35.1,145.55,145.5,6.8693]
[1750841755294,35.1,145.55,145.48,3.41100974]
[1750841756098,6.8682,145.53,145.5,6.8688]
[1750841756288,6.8682,145.53,145.48,3.41100974]
[1750841757202,6.8676,145.54,145.48,3.41100974]
[1750841757693,35.1,145.55,145.48,3.41100974]
[1750841757694,41.9671,145.55,145.48,3.41100974]
[1750841757895,35.08,145.58,145.5,3.41100974]
[1750841758100,35.08,145.58,145.51,37.3059]
[1750841758296,6.8665,145.56,145.53,6.8678]
[1750841759402,35.08,145.58,145.54,6.8673]
[1750841760099,6.8661,145.57,145.54,6.8673]
[1750841760298,20.5718,145.76,145.56,3.39459448]
[1750841760490,3.39459448,145.66,145.57,4.6899]
[1750841760696,35.08,145.69,145.6,6.8643]
[1750841760897,3.39392875,145.65,145.6,6.8643]
[1750841761204,3.39392875,145.67,145.59,3.39392875]
[1750841761499,8.10022875,145.68,145.61,3.39392875]
[1750841761896,595.8377,145.72,145.57,4.6899]
[1750841761897,634.29162875,145.72,145.63,3.39392875]
[1750841762097,634.29162875,145.72,145.63,38.45392875]
[1750841762304,3.38806037,145.78,145.63,35.06]
[1750841762504,3.38806037,145.79,145.71,3.38806037]
[1750841762701,6.9435,145.82,145.71,3.38806037]
[1750841762897,3.38806037,145.8,145.76,6.857]
[1750841763093,35.06,145.79,145.72,3.38806037]
[1750841763299,38.44806037,145.79,145.64,676.0679]
[1750841763505,47.18799685,215.04,145.74,3.38806037]
[1750841763803,47.18799685,218.05,145.74,3.38806037]
[1750841763804,6.8546,145.82,145.76,10.24247777]
[1750841764005,3.38577777,145.84,145.76,10.24247777]
[1750841764193,3.38577777,145.84,145.76,3.38577777]
[1750841764805,3.38577777,145.78,145.7,3.38577777]
[1750841765003,6.8583,145.74,145.69,6.8601]
[1750841765203,35.06,145.76,145.69,6.8601]
[1750841765408,3.38577777,145.75,145.68,3.38577777]
[1750841765607,3.38577777,145.75,145.67,3.38577777]
[1750841765907,3.38577777,145.75,145.64,600.3427]
[1750841766112,3.38577777,145.71,145.64,6.9227]
[1750841766300,38.44577777,145.71,145.64,4.5116]
[1750841766501,38.44577777,145.71,145.63,38.44577777]
[1750841766802,38.44577777,145.71,145.63,45.30877777]
[1750841768009,3.38577777,145.69,145.63,45.30877777]
[1750841768303,3.38577777,145.67,145.61,6.8638]
[1750841768504,3.38577777,145.65,145.58,43.18367777]
[1750841768809,3.38577777,145.63,145.58,2.4207]
[1750841769305,35.04,145.67,145.58,2.4207]
[1750841769502,3.38577777,145.65,145.58,5.80647777]
[1750841770214,5.65685096,145.65,145.58,2.4207]
[1750841771213,6.863,145.64,145.6,6.8641]
[1750841771812,6.863,145.64,145.61,6.8641]
[1750841772212,6.863,145.64,145.58,2.4207]
[1750841772415,12.51915096,145.65,145.58,2.4207]
[1750841772610,6.8623,145.65,145.58,2.4207]
[1750841772915,5.65685096,145.64,145.54,2.364]
[1750841773113,5.65685096,145.62,145.54,37.404]
[1750841773515,12.52055096,145.62,145.58,6.8652]
[1750841774414,6.8641,145.61,145.58,6.8652]
[1750841775716,6.8638,145.62,145.58,6.8652]
[1750841776017,6.8638,145.62,145.59,6.865]
[1750841776317,6.8638,145.62,145.54,43.06085096]
[1750841776612,6.8638,145.62,145.58,6.8652]
[1750841777412,593.06,145.68,145.6,6.8644]
[1750841777714,36.6,145.66,145.58,42.25685096]
[1750841777916,36.6,145.66,145.59,2.3511]
[1750841778106,36.6,145.66,145.6,5.65685096]
[1750841779320,36.6,145.66,145.64,6.8624]
[1750841779510,36.6,145.66,145.6,5.65685096]
[1750841779917,36.6,145.66,145.64,6.8624]
[1750841781319,36.6,145.66,145.65,6.8622]
[1750841781821,36.6,145.66,145.64,6.8625]
[1750841782221,36.6,145.66,145.6,5.65685096]
[1750841782416,36.6,145.66,145.6,8.08085096]
[1750841782616,36.6,145.66,145.64,6.8624]
[1750841782915,36.6,145.66,145.6,8.08085096]
[1750841783117,36.6,145.66,145.65,6.8622]
[1750841783518,36.6,145.66,145.64,6.8625]
[1750841784221,36.6,145.66,145.65,6.8622]
[1750841786331,6.861,145.68,145.65,6.8622]
[1750841787433,6.8613,145.67,145.65,6.8622]
[1750841787632,6.8613,145.67,145.64,6.8624]
[1750841789037,6.8618,145.66,145.63,6.8629]
[1750841789236,5.65685096,145.67,145.6,2.424]
[1750841789532,36.6,145.69,145.6,2.424]
[1750841789533,5.65685096,145.68,145.6,2.424]
[1750841789732,6.8611,145.68,145.65,6.8622]
[1750841790035,36.6,145.69,145.65,6.8622]
[1750841790235,3.39275537,145.67,145.64,6.8624]
[1750841790833,10.25425537,145.67,145.64,6.8624]
[1750841791337,10.25425537,145.67,145.65,6.8622]
[1750841791937,6.8615,145.67,145.65,6.8622]
[1750841792130,10.25425537,145.67,145.65,6.8622]
[1750841793034,10.25425537,145.67,145.64,6.8625]
[1750841793242,3.39275537,145.67,145.61,2.417]
[1750841794336,6.862,145.66,145.63,6.8629]
[1750841795338,6.8622,145.65,145.63,6.8629]
[1750841795733,3.39275537,145.65,145.59,2.3511]
[1750841796335,6.8628,145.64,145.59,2.3511]
[1750841796738,6.8628,145.64,145.61,6.8637]
[1750841797038,6.8632,145.63,145.61,6.8637]
[1750841798137,6.8628,145.64,145.61,6.8637]
[1750841798337,6.8628,145.64,145.62,6.8635]
[1750841799640,6.8628,145.64,145.61,6.8638]
[1750841800838,39.99275537,145.65,145.61,6.8638]
[1750841801034,6.8632,145.63,145.61,6.8638]
[1750841802346,6.8629,145.64,145.59,2.3511]
[1750841802933,6.8629,145.64,145.61,6.8639]
[1750841804141,6.8632,145.63,145.61,6.8639]
[1750841804340,36.6,145.65,145.62,6.8636]
[1750841804545,39.99275537,145.65,145.62,6.8636]
[1750841804741,6.8629,145.64,145.62,6.8636]
[1750841806745,6.8629,145.64,145.61,6.8639]
[1750841807348,6.8632,145.63,145.61,6.8639]
[1750841808146,6.8629,145.64,145.61,6.8639]
[1750841809146,6.8629,145.64,145.62,6.8636]
[1750841812852,6.8629,145.64,145.61,6.8639]
[1750841813546,6.8632,145.63,145.61,6.8639]
[1750841814848,36.6,145.65,145.59,2.3511]
[1750841815040,3.39275537,145.64,145.59,2.3511]
[1750841815242,3.39275537,145.64,145.6,6.8643]
[1750841815542,3.39275537,145.64,145.59,2.3511]
[1750841816152,36.6,145.65,145.59,2.3511]
[1750841816345,3.39275537,145.64,145.59,2.3511]
[1750841816844,6.8632,145.63,145.61,6.864]
[1750841817044,3.39275537,145.64,145.61,6.864]
[1750841817448,6.8634,145.63,145.61,6.864]
[1750841818349,6.8634,145.63,145.6,6.8643]
[1750841820351,6.8634,145.63,145.61,6.8641]
[1750841822044,39.61275537,145.68,145.6,3.39275537]
[1750841822447,6.8615,145.67,145.6,3.39275537]
[1750841822753,39.61275537,145.68,145.6,3.39275537]
[1750841822955,36.22,145.68,145.62,3.39275537]
[1750841823149,39.61275537,145.71,145.61,38.4156]
[1750841823356,36.22,145.71,145.64,3.39275537]
[1750841823557,43.0797,145.71,145.69,6.8603]
[1750841823947,36.22,145.71,145.69,6.8603]
[1750841824149,6.8592,145.72,145.7,6.8598]
[1750841824853,6.8587,145.73,145.7,6.8598]
[1750841825153,39.61275537,145.74,145.71,6.8593]
[1750841825348,3.39275537,145.76,145.68,3.39275537]
[1750841825757,3.39275537,145.76,145.72,6.8586]
[1750841826052,6.8577,145.75,145.68,5.79345537]
[1750841826352,3.39275537,145.76,145.68,5.79345537]
[1750841826558,3.39275537,145.76,145.69,36.22]
[1750841826853,3.39275537,145.76,145.74,6.8578]
[1750841827354,151.07491986,145.77,145.73,6.8583]
[1750841827556,154.46767523,145.77,145.73,6.8583]
[1750841827754,20.59,145.84,145.69,36.22]
[1750841827950,3.39275537,145.8,145.71,5.73165537]
[1750841828251,3.39275537,145.78,145.71,5.73165537]
[1750841828457,3.39275537,145.78,145.75,6.8572]
[1750841829055,3.39275537,145.78,145.71,41.93165537]
[1750841829056,6.8558,145.79,145.71,41.93165537]
[1750841829256,10.24855537,145.79,145.71,41.93165537]
[1750841829452,10.24855537,145.79,145.75,6.8572]
[1750841829655,6.8561,145.78,145.71,41.93165537]
[1750841830055,6.8561,145.78,145.75,6.8574]
[1750841830260,36.2,145.8,145.75,3.39275537]
[1750841831862,43.0551,145.8,145.75,3.39275537]
[1750841832161,43.0551,145.8,145.77,6.8561]
[1750841832857,43.0551,145.8,145.78,6.8561]
[1750841833060,36.2,145.8,145.78,6.8561]
[1750841833761,43.0552,145.8,145.77,6.8563]
[1750841835463,43.0552,145.8,145.75,3.39275537]
[1750841835963,43.0552,145.8,145.78,6.8561]
[1750841836261,36.2,145.8,145.78,6.8561]
[1750841836559,47.5437,145.83,145.73,36.2]
[1750841836759,6.854,145.83,145.77,3.39275537]
[1750841836959,39.57275537,145.86,145.79,3.39275537]
[1750841837162,39.57275537,145.86,145.78,2.4179]
[1750841838068,39.57275537,145.86,145.79,3.39275537]
[1750841838260,39.57275537,145.86,145.83,6.8536]
[1750841838566,3.39275537,145.84,145.78,2.4179]
[1750841839368,6.854,145.83,145.8,6.8551]
[1750841839568,3.39275537,145.84,145.8,6.8551]
[1750841839869,6.8542,145.82,145.78,2.4179]
[1750841840365,3.39275537,145.84,145.78,2.4179]
[1750841840565,6.854,145.83,145.8,6.8551]
[1750841841263,6.8542,145.82,145.8,6.8551]
[1750841842268,36.18,145.86,145.79,3.39275537]
[1750841842765,6.8533,145.84,145.81,6.8545]
[1750841843463,6.853,145.85,145.82,6.8542]
[1750841843663,39.57275537,145.86,145.79,3.39275537]
[1750841843868,3.39275537,145.84,145.8,6.855]
[1750841844166,3.39275537,145.84,145.78,2.4179]
[1750841844569,6.8544,145.82,145.79,6.8555]
[1750841845367,6.8544,145.82,145.8,6.8551]
[1750841845872,6.8544,145.82,145.79,6.8554]
[1750841846057,6.8544,145.82,145.78,2.4179]
[1750841846261,6.854,145.83,145.78,2.4179]
[1750841847171,10.24625537,145.84,145.81,6.8547]
[1750841847374,3.39275537,145.84,145.78,2.4179]
[1750841847567,36.18,145.86,145.78,5.81065537]
[1750841847765,6.8534,145.84,145.81,6.8544]
[1750841848273,6.8538,145.83,145.81,6.8544]
[1750841848472,3.39275537,145.85,145.81,6.8544]
[1750841849283,6.8534,145.84,145.81,6.8544]
[1750841849774,6.8549,145.81,145.78,2.4179]
[1750841850178,3.39275537,145.82,145.77,6.8562]
[1750841850375,6.8554,145.8,145.77,6.8562]
[1750841851275,6.8549,145.81,145.78,6.8557]
[1750841851976,40.03275537,145.82,145.78,6.8557]
[1750841853076,6.8548,145.81,145.78,6.8557]
[1750841853669,36.64,145.86,145.79,3.39275537]
[1750841854068,6.8535,145.84,145.81,6.8546]
[1750841854278,3.39275537,145.85,145.79,3.39275537]
[1750841854675,10.24585537,145.85,145.82,6.8541]
[1750841857079,3.39275537,145.85,145.83,6.8537]
[1750841857286,36.64,145.86,145.79,3.39275537]
[1750841857774,6.8531,145.85,145.82,6.8542]
[1750841857983,36.64,145.86,145.79,3.39275537]
[1750841858278,36.64,145.86,145.84,6.8529]
[1750841858478,36.64,145.86,145.8,2.2606]
[1750841858782,36.64,145.86,145.84,6.8532]
[1750841859977,6.8528,145.85,145.82,6.8539]
[1750841860281,36.64,145.86,145.8,2.2606]
[1750841860482,43.4926,145.86,145.82,6.8538]
[1750841861077,43.4926,145.86,145.83,6.8537]
[1750841862185,6.8528,145.85,145.83,6.8537]
[1750841862375,6.8528,145.85,145.82,6.854]
[1750841863185,43.4925,145.86,145.83,6.8537]
[1750841864386,43.4925,145.86,145.82,6.854]
[1750841864985,43.4925,145.86,145.82,6.8538]
[1750841865189,43.4925,145.86,145.8,2.2606]
[1750841866381,6.8528,145.85,145.8,2.2606]
[1750841866578,3.39275537,145.85,145.68,13.7212]
[1750841866788,3.39275537,145.77,145.73,2.3115]
[1750841867085,3.39275537,145.75,145.69,2.3115]
[1750841867585,10.25045537,145.75,145.72,6.8587]
[1750841867985,3.39275537,145.78,145.71,3.39275537]
[1750841868381,3.39275537,145.78,145.76,6.8566]
[1750841868581,3.39275537,145.78,145.72,2.1956]
[1750841870189,3.39275537,145.78,145.76,6.8566]
[1750841870687,10.24895537,145.78,145.76,6.8566]
[1750841871393,43.7158,145.79,145.76,6.8566]
[1750841871585,3.39275537,145.78,145.76,6.8566]
[1750841872390,3.39275537,145.78,145.77,6.8565]
[1750841873394,36.86,145.79,145.77,6.8565]
[1750841873690,40.25275537,145.79,145.77,6.8565]
[1750841875394,40.25275537,145.79,145.75,6.8571]
[1750841875897,40.25275537,145.79,145.75,6.8575]
[1750841876694,40.25275537,145.79,145.72,2.1956]
[1750841876695,3.39275537,145.77,145.71,36.86]
[1750841877308,3.39275537,145.75,145.69,2.3115]
[1750841877597,3.39275537,145.73,145.69,2.3115]
[1750841877808,10.25145537,145.73,145.7,6.8596]
[1750841878297,3.39275537,145.73,145.71,6.8593]
[1750841878605,3.39275537,145.73,145.69,2.3115]
[1750841879105,10.25145537,145.73,145.7,6.8596]
[1750841880205,6.859,145.72,145.7,6.8596]
[1750841880503,3.39275537,145.73,145.68,6.8605]
[1750841880800,6.8595,145.71,145.68,6.8605]
[1750841881404,6.8595,145.71,145.69,6.8602]
[1750841882301,6.8595,145.71,145.68,6.8606]
[1750841883002,6.8595,145.71,145.69,6.8603]
[1750841883602,6.8591,145.72,145.69,6.8603]
[1750841884500,36.88,145.75,145.67,36.88]
[1750841884691,3.39275537,145.77,145.69,3.39275537]
[1750841884894,3.39275537,145.77,145.7,4.529]
[1750841885101,6.8572,145.76,145.72,6.8585]
[1750841885303,3.39275537,145.77,145.7,4.529]
[1750841885502,3.39275537,145.77,145.75,6.8572]
[1750841885695,3.39275537,145.77,145.71,2.2427]
[1750841886403,10.24955537,145.77,145.74,6.8577]
[1750841886603,3.39275537,145.77,145.71,2.2427]
[1750841887308,3.39275537,145.77,145.75,6.8574]
[1750841888404,3.39275537,145.77,145.74,6.8578]
[1750841888802,10.24935537,145.77,145.74,6.8578]
[1750841890808,6.8566,145.77,145.74,6.8578]
[1750841891009,10.24935537,145.77,145.74,6.8578]
[1750841891200,3.39275537,145.75,145.73,6.8582]
[1750841891510,3.39275537,145.77,145.71,2.2427]
[1750841891801,47.12935537,145.77,145.74,6.8577]
[1750841892209,40.27275537,145.77,145.74,6.8577]
[1750841893208,47.12935537,145.77,145.74,6.8577]
[1750841896527,3.39275537,145.75,145.67,40.27275537]
[1750841896823,40.27275537,145.77,145.69,3.39275537]
[1750841897121,40.27275537,145.77,145.73,6.8581]
[1750841897623,138.9913,145.81,145.71,40.27275537]
[1750841897624,3.39275537,145.8,145.71,40.27275537]
[1750841897810,3.39275537,145.78,145.71,40.27275537]
[1750841898014,39.93275537,145.78,145.71,36.88]
[1750841898514,39.93275537,145.78,145.7,4.4748]
[1750841898515,3.39275537,145.76,145.7,4.4748]
[1750841898716,6.8575,145.75,145.7,4.4748]
[1750841899621,6.8575,145.75,145.72,6.8586]
[1750841899823,3.39275537,145.76,145.68,39.93275537]
[1750841900424,2.2613,145.77,145.68,36.54]
[1750841900621,36.54,145.78,145.72,3.39275537]
[1750841900818,36.54,145.78,145.73,2.2154]
[1750841901119,43.3963,145.78,145.75,6.8572]
[1750841901723,43.3963,145.78,145.76,6.857]
[1750841902226,36.54,145.78,145.76,6.857]
[1750841902724,36.54,145.78,145.77,6.8566]
[1750841903118,39.93275537,145.78,145.73,2.2154]
[1750841903320,6.8568,145.77,145.74,6.8576]
[1750841904029,6.8575,145.75,145.69,4.6499]
[1750841904217,36.54,145.78,145.7,3.39275537]
[1750841904418,39.93275537,145.78,145.7,3.39275537]
[1750841905124,6.8573,145.76,145.74,6.8579]
[1750841905321,39.93275537,145.78,145.74,6.8579]
[1750841905515,36.54,145.78,145.7,3.39275537]
[1750841905723,46.78905537,145.78,145.75,6.8572]
[1750841906322,39.93275537,145.78,145.75,6.8572]
[1750841906526,39.93275537,145.78,145.69,6.9592]
[1750841906527,36.54,145.78,145.76,6.857]
[1750841906714,36.54,145.78,145.72,3.39275537]
[1750841906919,43.3964,145.78,145.72,3.39275537]
[1750841907115,43.3964,145.78,145.75,6.8574]
[1750841907325,36.54,145.81,145.74,3.39275537]
[1750841907521,36.54,145.81,145.76,3.39275537]
[1750841907721,36.54,145.81,145.79,6.8552]
[1750841907925,36.54,145.81,145.76,3.39275537]
[1750841908230,36.54,145.81,145.8,6.8551]
[1750841908423,10.24675537,145.83,145.8,6.8551]
[1750841908826,3.39275537,145.83,145.79,6.8554]
[1750841909026,3.39275537,145.83,145.75,2.3312]
[1750841909930,6.8544,145.82,145.79,6.8554]
[1750841914026,6.8547,145.81,145.79,6.8554]
[1750841914442,6.8547,145.81,145.78,6.8559]
[1750841914737,3.39275537,145.81,145.75,2.3312]
[1750841914933,36.52,145.8,145.75,2.3312]
[1750841915126,36.52,145.8,145.77,6.8562]
[1750841915327,36.52,145.8,145.75,2.3312]
[1750841915633,36.52,145.8,145.78,6.856]
[1750841915934,43.3752,145.8,145.75,2.3312]
[1750841916127,43.3752,145.8,145.77,6.8563]
[1750841916939,6.8557,145.79,145.77,6.8563]
[1750841917337,36.52,145.8,145.77,6.8563]
[1750841917640,43.3754,145.8,145.77,6.8563]
[1750841917937,43.3754,145.8,145.78,6.8561]
[1750841918535,43.3754,145.8,145.77,6.8563]
[1750841919828,43.3754,145.8,145.75,2.3312]
[1750841920230,43.3754,145.8,145.78,6.8558]
[1750841920430,36.52,145.8,145.78,6.8558]
[1750841920850,43.3752,145.8,145.78,6.8558]
[1750841921938,36.52,145.8,145.78,6.8558]
[1750841923634,36.52,145.8,145.75,2.3312]
[1750841923839,36.52,145.8,145.73,36.54]
[1750841924240,43.3752,145.8,145.77,6.8562]
[1750841924428,36.52,145.8,145.73,36.54]
[1750841924937,43.3756,145.8,145.77,6.8563]
[1750841925440,43.3756,145.8,145.74,3.39275537]
[1750841926144,43.3756,145.8,145.78,6.8559]
[1750841927335,36.52,145.83,145.76,3.39275537]
[1750841927539,3.39275537,145.85,145.78,3.39275537]
[1750841927840,6.8554,145.8,145.75,2.3633]
[1750841928441,10.24765537,145.81,145.78,6.856]
[1750841929241,3.39275537,145.81,145.77,6.8563]
[1750841930045,6.8554,145.8,145.77,6.8563]
[1750841933846,6.8557,145.79,145.76,6.8568]
[1750841935046,6.8554,145.8,145.77,6.8565]
[1750841935942,6.8557,145.79,145.76,6.8568]
[1750841936244,3.39275537,145.77,145.69,2.2279]